fUSD/lending_fUSD_20250826
["ID","MTS","AMOUNT","RATE_DAILY","PERIOD"]
[381423995,1756191067063,-151.0,0.00019,2]
[381423996,1756191067073,-202.99267,0.00019,2]
[381423997,1756191067083,-202.99267,0.00019,2]
[381423998,1756191067092,-202.99267,0.00019,2]
[381423999,1756191067102,-202.992663,0.00019,2]
[381424000,1756191067112,-151.429956,0.00019,2]
[381424001,1756191067122,-151.0,0.00019,2]
[381424002,1756191067132,-151.0,0.00019,2]
[381424003,1756191067141,-223.779137,0.00019,2]
[381424004,1756191067151,-223.779137,0.00019,2]
[381424005,1756191067161,-223.779137,0.00019,2]
[381424006,1756191067170,-223.779132,0.00019,2]
[381424007,1756191067180,-151.0,0.00019,2]
[381424008,1756191067189,-151.0,0.00019,2]
[381424009,1756191067200,-151.0,0.00019,2]
[381424010,1756191067209,-151.0,0.00019,2]
[381424011,1756191067218,-151.0,0.00019,2]
[381424012,1756191067228,-151.0,0.00019,2]
[381424013,1756191067238,-151.0,0.00019,2]
[381424014,1756191067247,-151.0,0.00019,2]
[381424015,1756191067256,-186.682039,0.00019,2]
[381424016,1756191067265,-186.682039,0.00019,2]
[381424017,1756191067274,-186.682039,0.00019,2]
[381424018,1756191067283,-151.789029,0.00019,2]
[381424019,1756191067293,-186.682034,0.00019,2]
[381424020,1756191067302,-151.0,0.00019,2]
[381424021,1756191067312,-151.609554,0.00019,2]
[381424022,1756191067321,-151.0,0.00019,2]
[381424023,1756191067330,-151.0,0.00019,2]
[381424024,1756191067339,-151.0,0.00019,2]
[381424025,1756191067349,-151.0,0.00019,2]
[381424026,1756191067358,-151.0,0.00019,2]
[381424027,1756191067368,-151.0,0.00019,2]
[381424028,1756191067377,-158.670639,0.00019,2]
[381424029,1756191067386,-158.670639,0.00019,2]
[381424030,1756191067399,-158.670639,0.00019,2]
[381424031,1756191067408,-158.670639,0.00019,2]
[381424032,1756191067418,-158.670639,0.00019,2]
[381424033,1756191067427,-158.670639,0.00019,2]
[381424034,1756191067436,-158.670639,0.00019,2]
[381424035,1756191067445,-158.670641,0.00019,2]
[381424036,1756191067455,-151.0,0.00019,2]
[381424037,1756191067464,-151.0,0.00019,2]
[381424038,1756191067474,-151.0,0.00019,2]
[381424039,1756191067483,-151.0,0.00019,2]
[381424040,1756191067492,-151.0,0.00019,2]
[381424041,1756191067501,-151.0,0.00019,2]
[381424042,1756191067510,-151.0,0.00019,2]
[381424043,1756191067520,-151.0,0.00019,2]
[381424044,1756191067530,-151.0,0.00019,2]
[381424045,1756191067539,-173.694093,0.00019,2]
[381424046,1756191067548,-151.0,0.00019,2]
[381424047,1756191067558,-151.0,0.00019,2]
[381424048,1756191067569,-151.0,0.00019,2]
[381424049,1756191067579,-151.0,0.00019,2]
[381424050,1756191067588,-152.538477,0.00019,2]
[381424051,1756191067597,-151.0,0.00019,2]
[381424052,1756191067606,-151.0,0.00019,2]
[381424053,1756191067616,-151.0,0.00019,2]
[381424054,1756191067625,-151.0,0.00019,2]
[381424055,1756191067634,-151.0,0.00019,2]
[381424056,1756191067644,-151.0,0.00019,2]
[381424057,1756191067653,-230.337002,0.00019,2]
[381424058,1756191067663,-151.0,0.00019,2]
[381424059,1756191067672,-151.0,0.00019,2]
[381424060,1756191067682,-618.351297,0.00019,2]
[381424061,1756191067693,-618.351297,0.00019,2]
[381424062,1756191067702,-404.497572,0.00019,2]
[381424063,1756191067712,-404.497572,0.00019,2]
[381424064,1756191067722,-151.0,0.00019,2]
[381424065,1756191067731,-151.0,0.00019,2]
[381424066,1756191067741,-618.351297,0.00019,2]
[381424067,1756191067750,-404.497572,0.00019,2]
[381424068,1756191067761,-618.351297,0.00019,2]
[381424069,1756191067773,-404.497572,0.00019,2]
[381424070,1756191067783,-151.0,0.00019,2]
[381424071,1756191067793,-404.497572,0.00019,2]
[381424072,1756191067804,-618.351297,0.00019,2]
[381424073,1756191067819,-151.0,0.00019,2]
[381424074,1756191067828,-618.351297,0.00019,2]
[381424075,1756191067838,-404.497572,0.00019,2]
[381424076,1756191067847,-151.0,0.00019,2]
[381424077,1756191067856,-151.0,0.00019,2]
[381424078,1756191067865,-618.351297,0.00019,2]
[381424079,1756191067875,-404.497572,0.00019,2]
[381424080,1756191067884,-618.351295,0.00019,2]
[381424081,1756191067894,-404.497564,0.00019,2]
[381424082,1756191067903,-151.0,0.00019,2]
[381424083,1756191067912,-151.0,0.00019,2]
[381424084,1756191067922,-4437.29842471,0.00019,2]
[381424085,1756191067931,-151.0,0.00019,2]
[381424086,1756191067941,-151.0,0.00019,2]
[381424087,1756191067950,-151.0,0.00019,2]
[381424088,1756191067960,-151.0,0.00019,2]
[381424089,1756191067969,-151.0,0.00019,2]
[381424090,1756191067981,-151.0,0.00019,2]
[381424091,1756191067991,-151.0,0.00019,2]
[381424092,1756191068000,-151.0,0.00019,2]
[381424093,1756191068011,-211.677145,0.00019,2]
[381424094,1756191068020,-151.0,0.00019,2]
[381424095,1756191068030,-151.0,0.00019,2]
[381424096,1756191068040,-151.0,0.00019,2]
[381424097,1756191068049,-151.0,0.00019,2]
[381424098,1756191068059,-275.268487,0.00019,2]
[381424099,1756191068073,-151.0,0.00019,2]
[381424100,1756191068082,-800.577712,0.00019,2]
[381424101,1756191068091,-800.577712,0.00019,2]
[381424102,1756191068101,-800.577712,0.00019,2]
[381424103,1756191068110,-800.577708,0.00019,2]
[381424104,1756191068119,-151.0,0.00019,2]
[381424105,1756191068129,-155.486502,0.00019,2]
[381424106,1756191068139,-151.0,0.00019,2]
[381424107,1756191068149,-174.002456,0.00019,2]
[381424108,1756191068159,-151.0,0.00019,2]
[381424109,1756191068170,-151.0,0.00019,2]
[381424110,1756191068181,-151.0,0.00019,2]
[381424111,1756191068191,-151.0,0.00019,2]
[381424112,1756191068200,-244.248112,0.00019,2]
[381424113,1756191068210,-674081.3738861,0.00019,2]
[381424114,1756191068219,-674081.3738861,0.00019,2]
[381424115,1756191068230,-151.0,0.00019,2]
[381424116,1756191068241,-227.635931,0.00019,2]
[381424117,1756191068251,-151.0,0.00019,2]
[381424118,1756191068261,-227.635931,0.00019,2]
[381424119,1756191068270,-151.0,0.00019,2]
[381424120,1756191068281,-227.635931,0.00019,2]
[381424121,1756191068291,-227.635931,0.00019,2]
[381424122,1756191068300,-162.683279,0.00019,2]
[381424123,1756191068312,-162.683279,0.00019,2]
[381424124,1756191068323,-162.683279,0.00019,2]
[381424125,1756191068332,-367.090306,0.00019,2]
[381424126,1756191068341,-162.683283,0.00019,2]
[381424127,1756191068350,-367.090306,0.00019,2]
[381424128,1756191068359,-151.0,0.00019,2]
[381424129,1756191068370,-367.090306,0.00019,2]
[381424130,1756191068379,-151.0,0.00019,2]
[381424131,1756191068388,-367.090299,0.00019,2]
[381424132,1756191068398,-151.0,0.00019,2]
[381424133,1756191068409,-250.404867,0.00019,2]
[381424134,1756191068418,-151.0,0.00019,2]
[381424135,1756191068428,-151.0,0.00019,2]
[381424136,1756191068438,-156.082656,0.00019,2]
[381424137,1756191068452,-151.0,0.00019,2]
[381424138,1756191068463,-151.0,0.00019,2]
[381424139,1756191068475,-151.0,0.00019,2]
[381424140,1756191068486,-151.0,0.00019,2]
[381424141,1756191068497,-151.0,0.00019,2]
[381424142,1756191068507,-151.0,0.00019,2]
[381424143,1756191068518,-151.0,0.00019,2]
[381424144,1756191068529,-151.0,0.00019,2]
[381424145,1756191068539,-151.0,0.00019,2]
[381424146,1756191068548,-151.0,0.00019,2]
[381424147,1756191068558,-151.0,0.00019,2]
[381424148,1756191068571,-151.0,0.00019,2]
[381424149,1756191068581,-222.102208,0.00019,2]
[381424150,1756191068590,-151.0,0.00019,2]
[381424151,1756191068600,-151.0,0.00019,2]
[381424152,1756191068611,-151.0,0.00019,2]
[381424153,1756191068622,-356.769613,0.00019,2]
[381424154,1756191068632,-216.911488,0.00019,2]
[381424155,1756191068642,-216.911488,0.00019,2]
[381424156,1756191068652,-356.769613,0.00019,2]
[381424157,1756191068661,-216.911488,0.00019,2]
[381424158,1756191068671,-356.769609,0.00019,2]
[381424159,1756191068680,-216.911494,0.00019,2]
[381424160,1756191068690,-151.0,0.00019,2]
[381424161,1756191068700,-152.35223,0.00019,2]
[381424162,1756191068710,-151.0,0.00019,2]
[381424163,1756191068720,-241.688135,0.00019,2]
[381424164,1756191068730,-151.0,0.00019,2]
[381424165,1756191068739,-151.0,0.00019,2]
[381424166,1756191068749,-2054.293211,0.00019,2]
[381424167,1756191068759,-2054.293211,0.00019,2]
[381424168,1756191068770,-151.0,0.00019,2]
[381424169,1756191068782,-433.107172,0.00019,2]
[381424170,1756191068792,-2054.293211,0.00019,2]
[381424171,1756191068801,-190.219455,0.00019,2]
[381424172,1756191068814,-433.107172,0.00019,2]
[381424173,1756191068823,-2054.293211,0.00019,2]
[381424174,1756191068833,-151.0,0.00019,2]
[381424175,1756191068843,-151.0,0.00019,2]
[381424176,1756191068853,-151.0,0.00019,2]
[381424177,1756191068863,-151.0,0.00019,2]
[381424178,1756191068872,-151.0,0.00019,2]
[381424179,1756191068883,-433.107172,0.00019,2]
[381424180,1756191068893,-417.637221,0.00019,2]
[381424181,1756191068903,-151.0,0.00019,2]
[381424182,1756191068913,-433.107181,0.00019,2]
[381424183,1756191068923,-151.0,0.00019,2]
[381424184,1756191068933,-417.637221,0.00019,2]
[381424185,1756191068943,-151.0,0.00019,2]
[381424186,1756191068952,-154.320223,0.00019,2]
[381424187,1756191068962,-151.0,0.00019,2]
[381424188,1756191068972,-151.0,0.00019,2]
[381424189,1756191068981,-417.637221,0.00019,2]
[381424190,1756191068991,-151.0,0.00019,2]
[381424191,1756191069000,-151.0,0.00019,2]
[381424192,1756191069011,-151.0,0.00019,2]
[381424193,1756191069021,-417.637212,0.00019,2]
[381424194,1756191069030,-151.0,0.00019,2]
[381424195,1756191069039,-151.0,0.00019,2]
[381424196,1756191069049,-826.849714,0.00019,2]
[381424197,1756191069058,-826.849714,0.00019,2]
[381424198,1756191069071,-826.849714,0.00019,2]
[381424199,1756191069080,-749.404428,0.00019,2]
[381424200,1756191069089,-826.849724,0.00019,2]
[381424201,1756191069099,-242.868925,0.00019,2]
[381424202,1756191069108,-749.404428,0.00019,2]
[381424203,1756191069117,-242.868925,0.00019,2]
[381424204,1756191069127,-151.0,0.00019,2]
[381424205,1756191069137,-749.404428,0.00019,2]
[381424206,1756191069146,-242.868925,0.00019,2]
[381424207,1756191069156,-242.868932,0.00019,2]
[381424208,1756191069166,-749.40442,0.00019,2]
[381424209,1756191069177,-151.0,0.00019,2]
[381424210,1756191069188,-217.50369,0.00019,2]
[381424211,1756191069197,-217.50369,0.00019,2]
[381424212,1756191069207,-151.0,0.00019,2]
[381424213,1756191069217,-217.50369,0.00019,2]
[381424214,1756191069229,-271.0,0.00019,2]
[381424215,1756191069240,-217.503687,0.00019,2]
[381424216,1756191069249,-151.0,0.00019,2]
[381424217,1756191069259,-151.0,0.00019,2]
[381424218,1756191069269,-151.0,0.00019,2]
[381424219,1756191069279,-1006.303287,0.00019,2]
[381424220,1756191069290,-1006.303287,0.00019,2]
[381424221,1756191069300,-1006.303287,0.00019,2]
[381424222,1756191069310,-154.59072,0.00019,2]
[381424223,1756191069322,-1006.30328,0.00019,2]
[381424224,1756191069331,-151.0,0.00019,2]
[381424225,1756191069340,-6823.089403,0.00019,2]
[381424226,1756191069349,-471.207843,0.00019,2]
[381424227,1756191069359,-471.207843,0.00019,2]
[381424228,1756191069369,-471.207843,0.00019,2]
[381424229,1756191069378,-1392.889896,0.00019,2]
[381424230,1756191069390,-6823.089403,0.00019,2]
[381424231,1756191069400,-1392.889896,0.00019,2]
[381424232,1756191069411,-471.207845,0.00019,2]
[381424233,1756191069422,-1392.889896,0.00019,2]
[381424234,1756191069431,-1392.889904,0.00019,2]
[381424235,1756191069442,-6823.089403,0.00019,2]
[381424236,1756191069453,-151.0,0.00019,2]
[381424237,1756191069464,-210.861176,0.00019,2]
[381424238,1756191069475,-6823.089411,0.00019,2]
[381424239,1756191069486,-151.0,0.00019,2]
[381424240,1756191069496,-210.861176,0.00019,2]
[381424241,1756191069506,-313.127285,0.00019,2]
[381424242,1756191069515,-313.127285,0.00019,2]
[381424243,1756191069526,-313.127285,0.00019,2]
[381424244,1756191069535,-151.0,0.00019,2]
[381424245,1756191069546,-248.576933,0.00019,2]
[381424246,1756191069555,-210.861176,0.00019,2]
[381424247,1756191069566,-210.861181,0.00019,2]
[381424248,1756191069575,-248.576933,0.00019,2]
[381424249,1756191069584,-323.335728,0.00019,2]
[381424250,1756191069594,-151.0,0.00019,2]
[381424251,1756191069603,-313.127277,0.00019,2]
[381424252,1756191069612,-248.576933,0.00019,2]
[381424253,1756191069622,-323.335728,0.00019,2]
[381424254,1756191069631,-323.335728,0.00019,2]
[381424255,1756191069640,-248.576931,0.00019,2]
[381424256,1756191069649,-323.335718,0.00019,2]
[381424257,1756191069658,-151.0,0.00019,2]
[381424258,1756191069669,-151.0,0.00019,2]
[381424259,1756191069679,-1731.246886,0.00019,2]
[381424260,1756191069689,-1731.246886,0.00019,2]
[381424261,1756191069700,-1731.246886,0.00019,2]
[381424262,1756191069710,-151.0,0.00019,2]
[381424263,1756191069721,-1731.246884,0.00019,2]
[381424264,1756191069731,-151.0,0.00019,2]
[381424265,1756191069740,-151.0,0.00019,2]
[381424266,1756191069750,-152.777346,0.00019,2]
[381424267,1756191069759,-151.0,0.00019,2]
[381424268,1756191069773,-225.315938,0.00019,2]
[381424269,1756191069784,-151.0,0.00019,2]
[381424270,1756191069793,-151.0,0.00019,2]
[381424271,1756191069803,-225.315938,0.00019,2]
[381424272,1756191069815,-225.315938,0.00019,2]
[381424273,1756191069825,-151.0,0.00019,2]
[381424274,1756191069835,-225.315946,0.00019,2]
[381424275,1756191069845,-151.0,0.00019,2]
[381424276,1756191069855,-440.0,0.0001902,2]
[381424277,1756191069864,-500.0,0.00019028,2]
[381424278,1756191069873,-357.0,0.0001903,2]
[381424279,1756191069883,-168.0,0.00019065,2]
[381424280,1756191069892,-500.0,0.00019065,2]
[381424281,1756191069902,-1179.05146911,0.00019068,2]
[381424282,1756191069911,-1500.0,0.00019068,2]
[381424283,1756191069926,-1500.0,0.00019068,2]
[381424284,1756191069936,-1500.0,0.00019068,2]
[381424285,1756191069946,-1500.0,0.00019068,2]
[381424286,1756191069955,-1500.0,0.00019068,2]
[381424287,1756191069964,-968.83319447,0.00019068,2]
[381424288,1756191069974,-892.62702972,0.00019068,2]
[381424289,1756191069984,-502.88809515,0.00019068,2]
[381424290,1756191069993,-1500.0,0.00019068,2]
[381424291,1756191070002,-1500.0,0.00019068,2]
[381424292,1756191070011,-1500.0,0.00019068,2]
[381424293,1756191070020,-1500.0,0.00019068,2]
[381424294,1756191070030,-1500.0,0.00019068,2]
[381424295,1756191070038,-1500.0,0.00019068,2]
[381424296,1756191070047,-1500.0,0.00019068,2]
[381424297,1756191070057,-1500.0,0.00019068,2]
[381424298,1756191070069,-1500.0,0.00019068,2]
[381424299,1756191070078,-1606.40031721,0.00019068,2]
[381424300,1756191070087,-1500.0,0.00019068,2]
[381424301,1756191070096,-1500.0,0.00019068,2]
[381424302,1756191070105,-1500.0,0.00019068,2]
[381424303,1756191070114,-1500.0,0.00019068,2]
[381424304,1756191070123,-1500.0,0.00019068,2]
[381424305,1756191070132,-1004.11736908,0.00019068,2]
[381424306,1756191070141,-555.46486384,0.00019088,2]
[381424307,1756191070151,-2000.0,0.00019099,2]
[381424308,1756191070160,-1000.0,0.00019099,2]
[381424309,1756191070169,-1000.0,0.000191,2]
[381424310,1756191070178,-454.0,0.000191,5]
[381424311,1756191070187,-1000.0,0.000191,2]
[381424312,1756191070197,-1000.0,0.000191,2]
[381424313,1756191070206,-1020.0,0.000191,2]
[381424314,1756191070215,-1000.0,0.000191,2]
[381424315,1756191070224,-400.0,0.00019101,2]
[381424316,1756191070233,-500.0,0.00019103,2]
[381424317,1756191070243,-500.0,0.00019141,2]
[381424318,1756191070252,-500.0,0.00019178,2]
[381424319,1756191070261,-220.0,0.00019178,2]
[381424320,1756191070270,-220.0,0.00019178,2]
[381424321,1756191070279,-151.0,0.00019178,2]
[381424322,1756191070288,-200.12312063,0.00019178,2]
[381424323,1756191070297,-733.09394125,0.00019178,2]
[381424324,1756191070307,-5000.0,0.00019178,2]
[381424325,1756191070317,-150.0,0.00019178,2]
[381424326,1756191070327,-168.0,0.00019182,2]
[381424327,1756191070336,-168.0,0.00019238,2]
[381424328,1756191070345,-168.0,0.00019251,2]
[381424329,1756191070355,-364.5,0.00019271,2]
[381424330,1756191070364,-168.0,0.00019279,2]
[381424331,1756191070374,-168.0,0.00019323,2]
[381424332,1756191070383,-168.0,0.00019336,2]
[381424333,1756191070392,-1000.0,0.00019375,2]
[381424334,1756191070401,-400.0,0.00019375,2]
[381424335,1756191070410,-1016.40139055,0.000194,2]
[381424336,1756191070420,-1370.1331749,0.000194,2]
[381424337,1756191070430,-500.0,0.00019452,2]
[381424338,1756191070439,-245.0,0.00019452,2]
[381424339,1756191070449,-245.0,0.00019452,2]
[381424340,1756191070459,-1274.58658088,0.00019452,2]
[381424341,1756191070468,-1274.58658088,0.00019452,2]
[381424342,1756191070478,-150.0,0.00019509,2]
[381424343,1756191070488,-150.0,0.00019536,2]
[381424344,1756191070498,-150.0,0.00019536,2]
[381424345,1756191070508,-328.05,0.00019577,2]
[381424346,1756191070681,-734.48056583,0.00019616,2]
[381424347,1756191070691,-1652.66068269,0.00019616,2]
[381424348,1756191070700,-2000.0,0.00019616,2]
[381424349,1756191070710,-1217.7069003,0.00019616,2]
[381424350,1756191070720,-2000.0,0.00019616,2]
[381424351,1756191070729,-2000.0,0.00019616,2]
[381424352,1756191070739,-2000.0,0.00019616,2]
[381424353,1756191070748,-2000.0,0.00019616,2]
[381424354,1756191070758,-1000.0,0.00019616,2]
[381424355,1756191070768,-2000.0,0.00019616,2]
[381424356,1756191070785,-2000.0,0.00019616,2]
[381424357,1756191070794,-417.10743411,0.00019616,2]
[381424358,1756191070804,-2000.0,0.00019616,2]
[381424359,1756191070814,-2000.0,0.00019616,2]
[381424360,1756191070825,-2000.0,0.00019616,2]
[381424361,1756191070835,-472.83011308,0.00019616,2]
[381424362,1756191070847,-502.07266514,0.00019616,2]
[381424363,1756191070857,-2000.0,0.00019616,2]
[381424364,1756191070867,-651.18306465,0.00019616,2]
[381424365,1756191070878,-400.0,0.00019649,2]
[381424366,1756191070887,-373.07297731,0.00019652,2]
[381424367,1756191070897,-309.29654756,0.00019652,2]
[381424368,1756191070907,-747.8093786,0.00019654,2]
[381424369,1756191070917,-2000.0,0.000197,2]
[381424370,1756191070931,-2000.0,0.000197,2]
[381424371,1756191070942,-2000.0,0.000197,2]
[381424372,1756191070951,-2000.0,0.000197,2]
[381424373,1756191070961,-2000.0,0.000197,2]
[381424374,1756191070970,-718.0,0.000197,2]
[381424375,1756191070980,-212.1,0.000197,2]
[381424376,1756191070989,-50000.0,0.00019726,2]
[381424377,1756191070999,-50000.0,0.00019726,3]
[381424378,1756191071008,-50000.0,0.00019726,4]
[381424379,1756191071018,-50000.0,0.00019726,5]
[381424380,1756191071027,-50000.0,0.00019726,6]
[381424381,1756191071037,-50000.0,0.00019726,7]
[381424382,1756191071046,-500.0,0.00019726,2]
[381424383,1756191071057,-213.0,0.00019726,2]
[381424384,1756191071068,-213.0,0.00019726,2]
[381424385,1756191071077,-213.0,0.00019726,2]
[381424386,1756191071087,-213.0,0.00019726,2]
[381424387,1756191071096,-213.0,0.00019726,2]
[381424388,1756191071106,-213.0,0.00019726,2]
[381424389,1756191071115,-213.0,0.00019726,2]
[381424390,1756191071124,-213.0,0.00019726,2]
[381424391,1756191071134,-213.0,0.00019726,2]
[381424392,1756191071144,-213.0,0.00019726,2]
[381424393,1756191071153,-440.0,0.00019726,2]
[381424394,1756191071163,-440.0,0.00019726,2]
[381424395,1756191071172,-440.0,0.00019726,2]
[381424396,1756191071182,-440.0,0.00019726,2]
[381424397,1756191071192,-440.0,0.00019726,2]
[381424398,1756191071202,-440.0,0.00019726,2]
[381424399,1756191071212,-440.0,0.00019726,2]
[381424400,1756191071222,-440.0,0.00019726,2]
[381424401,1756191071231,-440.0,0.00019726,2]
[381424402,1756191071241,-440.0,0.00019726,2]
[381424403,1756191071251,-440.0,0.00019726,2]
[381424404,1756191071260,-440.0,0.00019726,2]
[381424405,1756191071269,-440.0,0.00019726,2]
[381424406,1756191071279,-440.0,0.00019726,2]
[381424407,1756191071288,-440.0,0.00019726,2]
[381424408,1756191071297,-156.587,0.00019726,2]
[381424409,1756191071307,-150.0,0.00019769,2]
[381424410,1756191071318,-7480.7805788,0.00019786,2]
[381424411,1756191071327,-37410.81,0.000198,2]
[381424412,1756191071338,-7116.56,0.000198,2]
[381424413,1756191071347,-458.7662338,0.000198,7]
[381424414,1756191071357,-212.18043798,0.000198,7]
[381424415,1756191071367,-60000.0,0.000198,3]
[381424416,1756191071376,-619.82538668,0.00019817,2]
[381424417,1756191071386,-151.67091607,0.0001983,2]
[381424418,1756191071396,-844.87,0.00019863,2]
[381424419,1756191071405,-440.0,0.0001988,2]
[381424420,1756191071415,-295.245,0.00019883,2]
[381424421,1756191071425,-8847.81022184,0.000199,2]
[381424422,1756191071435,-298.75718287,0.000199,2]
[381424423,1756191071444,-400.0,0.00019923,2]
[381424424,1756191071455,-500.0,0.00019946,2]
[381424425,1756191071464,-514.0,0.0001997,2]
[381424426,1756191071474,-150.0,0.00019974,2]
[381424427,1756191071483,-70853.7906922,0.0001999,2]
[381424428,1756191071493,-150.0,0.00019999,2]
[381424429,1756191071503,-2000.0,0.00019999,2]
[381424430,1756191071512,-542.09321992,0.0002,2]
[381424431,1756191071521,-1999.95,0.0002,2]
[381424432,1756191071531,-879.68,0.0002,2]
[381424433,1756191071541,-391.0,0.0002,2]
[381424434,1756191071550,-346.14183792,0.0002,2]
[381424435,1756191071560,-8300.0,0.0002,4]
[381424436,1756191071570,-4614.04334529,0.0002,5]
[381424437,1756191071580,-46469.28016642,0.0002,2]
[381424438,1756191071590,-17198.88916488,0.0002,2]
[381424439,1756191071599,-400.0,0.0002,8]
[381424440,1756191071610,-213.59,0.0002,2]
[381424441,1756191071620,-4104.27145108,0.0002,2]
[381424442,1756191071629,-5859.87090378,0.0002,2]
[381424443,1756191071638,-46167.68737355,0.0002,5]
[381424444,1756191071648,-885.09938443,0.0002,2]
[381424445,1756191071658,-1503.75078917,0.0002,2]
[381424446,1756191071668,-1342.93,0.0002,2]
[381424447,1756191071678,-1269.89630392,0.0002,2]
[381424448,1756191071687,-303.34331797,0.0002,2]
[381424449,1756191071697,-1233.97280833,0.0002,2]
[381424450,1756191071707,-392.15589136,0.0002,2]
[381424451,1756191071716,-165.7,0.0002,2]
[381424452,1756191071725,-200.373318,0.0002,2]
[381424453,1756191071735,-4000.0,0.0002,4]
[381424454,1756191071744,-456.75611087,0.00020008,2]
[381424455,1756191071754,-150.0,0.00020036,2]
[381424456,1756191071764,-3269.59857661,0.00020063,2]
[381424457,1756191071776,-150.0,0.00020098,2]
[381424458,1756191071786,-500.0,0.0002014,2]
[381424459,1756191071796,-180.4,0.00020151,2]
[381424460,1756191071805,-150.0,0.00020159,2]
[381424461,1756191071815,-699.65794087,0.00020164,2]
[381424462,1756191071825,-2500.0,0.00020164,2]
[381424463,1756191071834,-2500.0,0.00020164,2]
[381424464,1756191071844,-671.47392746,0.00020164,2]
[381424465,1756191071853,-2500.0,0.00020164,2]
[381424466,1756191071863,-2500.0,0.00020164,2]
[381424467,1756191071872,-784.05329204,0.00020164,2]
[381424468,1756191071882,-2500.0,0.00020164,2]
[381424469,1756191071892,-2500.0,0.00020164,2]
[381424470,1756191071901,-220.12734939,0.00020164,2]
[381424471,1756191071911,-1352.9675257,0.00020164,2]
[381424472,1756191071920,-426.46,0.00020187,2]
[381424473,1756191071930,-265.7205,0.00020189,2]
[381424474,1756191071940,-403.27518338,0.00020197,2]
[381424475,1756191071949,-24449.186451,0.000202,2]
[381424476,1756191071959,-698.0,0.0002022,2]
[381424477,1756191071968,-150.0,0.00020221,2]
[381424478,1756191071978,-162.380719,0.00020274,2]
[381424479,1756191071987,-2711.4926443,0.00020275,2]
[381424480,1756191071996,-150.0,0.00020283,2]
[381424481,1756191072005,-1200.0,0.000203,3]
[381424482,1756191072015,-1000.0,0.00020322,2]
[381424483,1756191072024,-150.0,0.00020345,2]
[381424484,1756191072034,-18587.486309,0.000204,2]
[381424485,1756191072043,-150.0,0.00020406,2]
[381424486,1756191072052,-150.0,0.00020468,2]
[381424487,1756191072062,-450.0,0.00020475,2]
[381424488,1756191072075,-7422.37882238,0.00020478,2]
[381424489,1756191072084,-150.21340694,0.00020479,5]
[381424490,1756191072094,-239.14845,0.00020494,2]
[381424491,1756191072103,-200.0,0.0002051,7]
[381424492,1756191072113,-186.14,0.00020548,2]
[381424493,1756191072122,-1221.0,0.000207,2]
[381424494,1756191072132,-1221.0,0.000207,2]